[Event "Early-Titled-Tuesday-Blitz-May-28-2024"]
[Site "Chess.com"]
[Date "2024.05.28"]
[Round "2"]
[White "Szachulec75"]
[Black "Mr_ruthless"]
[Result "1/2-1/2"]
[WhiteElo "2175"]
[BlackElo "2467"]
[TimeControl "180+1"]
[EndTime "8:19:52 PDT"]
[Termination "Game drawn by repetition"]

1. Nf3 {[%clk 0:03:00.9]} 1... Nf6 {[%clk 0:02:59.5]} 2. g3 {[%clk 0:02:58.7]}
2... g6 {[%clk 0:02:59.4]} 3. Bg2 {[%clk 0:02:57.5]} 3... Bg7 {[%clk 0:02:59.3]}
4. d3 {[%clk 0:02:58.4]} 4... O-O {[%clk 0:02:59.1]} 5. O-O {[%clk 0:02:58.5]}
5... d5 {[%clk 0:02:56.6]} 6. Nbd2 {[%clk 0:02:57.5]} 6... b6 {[%clk 0:02:54.8]}
7. e4 {[%clk 0:02:56.1]} 7... dxe4 {[%clk 0:02:53.1]} 8. dxe4 {[%clk 0:02:53.9]}
8... Bb7 {[%clk 0:02:53.7]} 9. e5 {[%clk 0:02:54]} 9... Nd5 {[%clk 0:02:41.4]}
10. a3 {[%clk 0:02:38]} 10... Nc6 {[%clk 0:02:32.2]} 11. c4 {[%clk 0:02:35.9]}
11... Nxe5 {[%clk 0:02:27.1]} 12. cxd5 {[%clk 0:02:34.5]} 12... Qxd5 {[%clk
0:02:24.6]} 13. Nh4 {[%clk 0:02:28.8]} 13... Qd7 {[%clk 0:01:58.2]} 14. Bxb7
{[%clk 0:02:18.3]} 14... Rad8 {[%clk 0:01:59.1]} 15. Bg2 {[%clk 0:02:07.9]}
15... Nd3 {[%clk 0:01:56.5]} 16. Nc4 {[%clk 0:01:52.1]} 16... Qb5 {[%clk
0:01:45.9]} 17. Qc2 {[%clk 0:01:47.8]} 17... Rd4 {[%clk 0:01:42.8]} 18. Be3
{[%clk 0:01:30.5]} 18... Qxc4 {[%clk 0:01:37.9]} 19. Qxc4 {[%clk 0:01:26.3]}
19... Rxc4 {[%clk 0:01:38.8]} 20. Rad1 {[%clk 0:01:10.3]} 20... Nxb2 {[%clk
0:01:28.1]} 21. Rc1 {[%clk 0:01:10.7]} 21... Rd8 {[%clk 0:01:15.2]} 22. Rxc4
{[%clk 0:01:09.5]} 22... Nxc4 {[%clk 0:01:15.5]} 23. Bc1 {[%clk 0:01:01.1]}
23... c5 {[%clk 0:01:00.7]} 24. a4 {[%clk 0:01:00.1]} 24... Bc3 {[%clk
0:00:44.3]} 25. Bc6 {[%clk 0:00:59.9]} 25... e5 {[%clk 0:00:36.7]} 26. Ng2
{[%clk 0:00:56.2]} 26... f5 {[%clk 0:00:33.8]} 27. Ne3 {[%clk 0:00:56.5]} 27...
Nxe3 {[%clk 0:00:32.6]} 28. Bxe3 {[%clk 0:00:54.9]} 28... Kf7 {[%clk 0:00:33.1]}
29. Rc1 {[%clk 0:00:52.5]} 29... Ba5 {[%clk 0:00:30.8]} 30. Bb5 {[%clk 0:00:52]}
30... Bb4 {[%clk 0:00:18.2]} 31. Kf1 {[%clk 0:00:52.2]} 31... Kf6 {[%clk
0:00:17.9]} 32. Ke2 {[%clk 0:00:52.6]} 32... g5 {[%clk 0:00:18.3]} 33. f4 {[%clk
0:00:50]} 33... exf4 {[%clk 0:00:14.8]} 34. gxf4 {[%clk 0:00:50.5]} 34... g4
{[%clk 0:00:14.7]} 35. Rd1 {[%clk 0:00:48.5]} 35... Rxd1 {[%clk 0:00:14.1]} 36.
Kxd1 {[%clk 0:00:48.9]} 36... h5 {[%clk 0:00:13.9]} 37. Ke2 {[%clk 0:00:46.7]}
37... Bc3 {[%clk 0:00:12.8]} 38. Kd3 {[%clk 0:00:42.8]} 38... Be1 {[%clk
0:00:13.3]} 39. Ke2 {[%clk 0:00:41.9]} 39... Bc3 {[%clk 0:00:12.5]} 40. Kd3
{[%clk 0:00:42.3]} 40... Be1 {[%clk 0:00:11.7]} 41. Ke2 {[%clk 0:00:42.9]} 41...
Ba5 {[%clk 0:00:12.1]} 42. Kf2 {[%clk 0:00:33.9]} 42... h4 {[%clk 0:00:11.6]}
43. Kg2 {[%clk 0:00:33.9]} 43... Be1 {[%clk 0:00:10.5]} 44. Bc1 {[%clk 0:00:32]}
44... h3+ {[%clk 0:00:10]} 45. Kg1 {[%clk 0:00:30.8]} 45... Bc3 {[%clk
0:00:10.5]} 46. Be3 {[%clk 0:00:29.7]} 46... Ke6 {[%clk 0:00:09.6]} 47. Kf2
{[%clk 0:00:30.1]} 47... Kf6 {[%clk 0:00:07]} 48. Kg3 {[%clk 0:00:24.3]} 48...
Be1+ {[%clk 0:00:06.9]} 49. Bf2 {[%clk 0:00:23.9]} 49... Bd2 {[%clk 0:00:06.5]}
50. Bc4 {[%clk 0:00:19.9]} 50... Bc3 {[%clk 0:00:06.1]} 51. Bb5 {[%clk
0:00:19.7]} 51... Bb2 {[%clk 0:00:05.7]} 52. Bd3 {[%clk 0:00:17.4]} 52... Ke6
{[%clk 0:00:04.2]} 53. Bc4+ {[%clk 0:00:16]} 53... Kf6 {[%clk 0:00:04.6]} 54.
Be1 {[%clk 0:00:16.1]} 54... Bd4 {[%clk 0:00:04.2]} 55. Bd2 {[%clk 0:00:13.3]}
55... Bg1 {[%clk 0:00:04]} 56. Bc3+ {[%clk 0:00:13.3]} 56... Kg6 {[%clk
0:00:04.4]} 57. Be5 {[%clk 0:00:10.3]} 57... Be3 {[%clk 0:00:04.6]} 58. Bb8
{[%clk 0:00:10.6]} 58... Bd2 {[%clk 0:00:04.8]} 59. Kf2 {[%clk 0:00:09.9]} 59...
a5 {[%clk 0:00:04]} 60. Bc7 {[%clk 0:00:08.7]} 60... Bc1 {[%clk 0:00:03.4]} 61.
Kg3 {[%clk 0:00:06.8]} 61... Bd2 {[%clk 0:00:03.4]} 62. Kf2 {[%clk 0:00:07.5]}
62... Bc1 {[%clk 0:00:03.6]} 63. Kg3 {[%clk 0:00:08.1]} 63... Bd2 {[%clk
0:00:03.8]} 64. Kf2 {[%clk 0:00:08.7]} 1/2-1/2

[Event "Early-Titled-Tuesday-Blitz-May-28-2024"]
[Site "Chess.com"]
[Date "2024.05.28"]
[Round "2"]
[White "LLariMarc"]
[Black "djokovic74"]
[Result "0-1"]
[WhiteElo "2485"]
[BlackElo "2763"]
[TimeControl "180+1"]
[EndTime "8:19:59 PDT"]
[Termination "djokovic74 won by resignation"]

1. d4 {[%clk 0:03:00.9]} 1... e6 {[%clk 0:03:00.3]} 2. Nf3 {[%clk 0:02:59.8]}
2... Nf6 {[%clk 0:03:00.5]} 3. Bg5 {[%clk 0:02:59.5]} 3... h6 {[%clk 0:03:00.3]}
4. Bh4 {[%clk 0:02:58.6]} 4... c5 {[%clk 0:03:00.5]} 5. e3 {[%clk 0:02:58]} 5...
b6 {[%clk 0:03:00.5]} 6. Nbd2 {[%clk 0:02:57.5]} 6... Bb7 {[%clk 0:03:00.3]} 7.
c3 {[%clk 0:02:57.3]} 7... Be7 {[%clk 0:03:00.3]} 8. Bd3 {[%clk 0:02:57.7]} 8...
Nc6 {[%clk 0:02:59.7]} 9. O-O {[%clk 0:02:57.4]} 9... O-O {[%clk 0:02:59.9]} 10.
a3 {[%clk 0:02:57.2]} 10... d5 {[%clk 0:02:59.3]} 11. Qe2 {[%clk 0:02:53.2]}
11... Ne4 {[%clk 0:02:58.1]} 12. Bxe7 {[%clk 0:02:52.1]} 12... Nxe7 {[%clk
0:02:57.4]} 13. Rad1 {[%clk 0:02:34.4]} 13... Qc7 {[%clk 0:02:55.4]} 14. Rfe1
{[%clk 0:02:34]} 14... Rac8 {[%clk 0:02:53.3]} 15. Nf1 {[%clk 0:02:33.9]} 15...
Rfd8 {[%clk 0:02:48.5]} 16. Ng3 {[%clk 0:02:33.8]} 16... a5 {[%clk 0:02:18]} 17.
Ne5 {[%clk 0:02:28]} 17... f6 {[%clk 0:02:17.3]} 18. Nf3 {[%clk 0:02:06.4]}
18... Bc6 {[%clk 0:02:12.7]} 19. Bb5 {[%clk 0:02:02]} 19... Bb7 {[%clk
0:02:04.1]} 20. Nxe4 {[%clk 0:01:48.8]} 20... dxe4 {[%clk 0:02:02.4]} 21. Nd2
{[%clk 0:01:48.8]} 21... Bd5 {[%clk 0:01:50.7]} 22. a4 {[%clk 0:01:18]} 22...
Nf5 {[%clk 0:01:47.9]} 23. Nf1 {[%clk 0:01:07.8]} 23... c4 {[%clk 0:01:40.1]}
24. Ng3 {[%clk 0:01:04]} 24... Nd6 {[%clk 0:01:28.2]} 25. Qg4 {[%clk 0:01:03]}
25... Qf7 {[%clk 0:01:21.6]} 26. h4 {[%clk 0:00:43.2]} 26... Kh8 {[%clk
0:01:10.4]} 27. h5 {[%clk 0:00:41.5]} 27... Nxb5 {[%clk 0:00:43.4]} 28. axb5
{[%clk 0:00:42.4]} 28... Qd7 {[%clk 0:00:44]} 29. Nxe4 {[%clk 0:00:41.5]} 29...
f5 {[%clk 0:00:40.1]} 30. Qf4 {[%clk 0:00:38.1]} 30... Bxe4 {[%clk 0:00:39.1]}
31. f3 {[%clk 0:00:37.8]} 31... Bd3 {[%clk 0:00:35.5]} 32. e4 {[%clk 0:00:33.5]}
32... fxe4 {[%clk 0:00:34.6]} 33. fxe4 {[%clk 0:00:34.4]} 33... Qxb5 {[%clk
0:00:34.8]} 34. Rd2 {[%clk 0:00:35]} 34... Rf8 {[%clk 0:00:33.5]} 35. Qd6 {[%clk
0:00:34.6]} 35... Qg5 {[%clk 0:00:29.7]} 36. Rf2 {[%clk 0:00:29.2]} 36... Rxf2
{[%clk 0:00:26.4]} 37. Kxf2 {[%clk 0:00:30.1]} 37... Qf6+ {[%clk 0:00:27]} 38.
Kg1 {[%clk 0:00:29.7]} 38... Rf8 {[%clk 0:00:27.6]} 39. Qg3 {[%clk 0:00:26.7]}
39... Qg5 {[%clk 0:00:24.6]} 40. Qd6 {[%clk 0:00:25]} 40... Qf6 {[%clk
0:00:23.1]} 41. Qg3 {[%clk 0:00:24.6]} 41... Qf4 {[%clk 0:00:23.6]} 42. Qxf4
{[%clk 0:00:23.4]} 42... Rxf4 {[%clk 0:00:22.7]} 43. e5 {[%clk 0:00:23.9]} 43...
Kg8 {[%clk 0:00:17.8]} 44. Ra1 {[%clk 0:00:23]} 44... Kf8 {[%clk 0:00:17.5]} 45.
g3 {[%clk 0:00:23]} 45... Rf5 {[%clk 0:00:16.9]} 46. Kg2 {[%clk 0:00:21.9]}
46... Ke8 {[%clk 0:00:16.5]} 47. Ra3 {[%clk 0:00:20.2]} 47... Kd7 {[%clk
0:00:15.9]} 48. b3 {[%clk 0:00:20.5]} 48... Kc6 {[%clk 0:00:15.6]} 49. bxc4
{[%clk 0:00:17.2]} 49... Bxc4 {[%clk 0:00:16]} 50. g4 {[%clk 0:00:17.9]} 50...
Bd5+ {[%clk 0:00:15]} 51. Kg3 {[%clk 0:00:18]} 51... Rf3+ {[%clk 0:00:15.2]} 52.
Kh4 {[%clk 0:00:18.7]} 52... Rf1 {[%clk 0:00:13.6]} 53. Kg3 {[%clk 0:00:18.6]}
53... Rb1 {[%clk 0:00:10.9]} 54. Kf4 {[%clk 0:00:16.6]} 54... Rb3 {[%clk
0:00:10.6]} 55. Ra1 {[%clk 0:00:17.2]} 55... Rxc3 {[%clk 0:00:09.9]} 56. g5
{[%clk 0:00:17.9]} 56... hxg5+ {[%clk 0:00:08.7]} 57. Kxg5 {[%clk 0:00:18.8]}
57... Rg3+ {[%clk 0:00:08.9]} 58. Kf4 {[%clk 0:00:19.3]} 58... Rg2 {[%clk
0:00:08.7]} 59. Rc1+ {[%clk 0:00:19.9]} 59... Kb7 {[%clk 0:00:08.9]} 60. Rh1
{[%clk 0:00:18.9]} 60... Rg4+ {[%clk 0:00:07.6]} 61. Kxg4 {[%clk 0:00:19.1]}
61... Bxh1 {[%clk 0:00:08.5]} 62. Kg5 {[%clk 0:00:19.9]} 62... Be4 {[%clk
0:00:08.7]} 63. d5 {[%clk 0:00:19.4]} 63... Bxd5 {[%clk 0:00:08]} 64. Kg6 {[%clk
0:00:19.9]} 64... Kc6 {[%clk 0:00:07.4]} 65. Kxg7 {[%clk 0:00:20.8]} 65... Be4
{[%clk 0:00:08.1]} 66. Kf6 {[%clk 0:00:21.2]} 66... Kd5 {[%clk 0:00:09]} 67. h6
{[%clk 0:00:21.6]} 67... a4 {[%clk 0:00:09.3]} 68. Kg7 {[%clk 0:00:21.5]} 68...
a3 {[%clk 0:00:09.6]} 69. h7 {[%clk 0:00:22.4]} 69... Bxh7 {[%clk 0:00:09.3]}
70. Kxh7 {[%clk 0:00:23.3]} 70... a2 {[%clk 0:00:10.2]} 0-1

[Event "Early-Titled-Tuesday-Blitz-May-28-2024"]
[Site "Chess.com"]
[Date "2024.05.28"]
[Round "2"]
[White "ASKA538"]
[Black "littlepinkyboy"]
[Result "1/2-1/2"]
[WhiteElo "2392"]
[BlackElo "2633"]
[TimeControl "180+1"]
[EndTime "8:20:06 PDT"]
[Termination "Game drawn - insufficient material"]

1. e4 {[%clk 0:03:00.9]} 1... c5 {[%clk 0:02:57]} 2. Nf3 {[%clk 0:03:00.2]} 2...
e6 {[%clk 0:02:57.7]} 3. d4 {[%clk 0:02:59.9]} 3... cxd4 {[%clk 0:02:58.6]} 4.
Nxd4 {[%clk 0:03:00]} 4... Nc6 {[%clk 0:02:59.5]} 5. Nc3 {[%clk 0:02:59.5]} 5...
Qc7 {[%clk 0:03:00.3]} 6. Be3 {[%clk 0:02:52.6]} 6... Nf6 {[%clk 0:03:00.9]} 7.
f3 {[%clk 0:02:49.1]} 7... Bb4 {[%clk 0:02:59.8]} 8. Nb5 {[%clk 0:02:36.1]} 8...
Qa5 {[%clk 0:02:41]} 9. a3 {[%clk 0:02:34.8]} 9... Bxc3+ {[%clk 0:02:37.9]} 10.
Nxc3 {[%clk 0:02:31]} 10... d5 {[%clk 0:02:37.6]} 11. Qd2 {[%clk 0:02:11.4]}
11... O-O {[%clk 0:02:18.1]} 12. exd5 {[%clk 0:02:01.7]} 12... exd5 {[%clk
0:02:19]} 13. O-O-O {[%clk 0:01:51.4]} 13... Rd8 {[%clk 0:02:17]} 14. Bg5 {[%clk
0:01:24.3]} 14... d4 {[%clk 0:02:09.6]} 15. Bxf6 {[%clk 0:01:23.9]} 15... gxf6
{[%clk 0:02:09.4]} 16. Ne4 {[%clk 0:01:22.2]} 16... Qxd2+ {[%clk 0:02:08.6]} 17.
Rxd2 {[%clk 0:01:20.7]} 17... Kg7 {[%clk 0:02:09.5]} 18. g4 {[%clk 0:01:13.7]}
18... f5 {[%clk 0:02:01.6]} 19. Nf2 {[%clk 0:01:01.8]} 19... fxg4 {[%clk
0:01:57.8]} 20. fxg4 {[%clk 0:01:01.5]} 20... Ne5 {[%clk 0:01:56.6]} 21. h3
{[%clk 0:00:59.3]} 21... Be6 {[%clk 0:01:48.9]} 22. Bg2 {[%clk 0:00:59.2]} 22...
Bd5 {[%clk 0:01:43.5]} 23. Be4 {[%clk 0:00:54.7]} 23... Bxe4 {[%clk 0:01:40.9]}
24. Nxe4 {[%clk 0:00:55]} 24... Rd5 {[%clk 0:01:41.2]} 25. Rhd1 {[%clk
0:00:52.6]} 25... Rad8 {[%clk 0:01:39.5]} 26. g5 {[%clk 0:00:52.9]} 26... Nf3
{[%clk 0:01:23.6]} 27. Rd3 {[%clk 0:00:52]} 27... Ne5 {[%clk 0:01:22.8]} 28. Rg3
{[%clk 0:00:50.3]} 28... d3 {[%clk 0:01:21.5]} 29. Nc3 {[%clk 0:00:42.3]} 29...
R5d7 {[%clk 0:01:17.6]} 30. cxd3 {[%clk 0:00:40.1]} 30... Nxd3+ {[%clk
0:01:18.5]} 31. Kc2 {[%clk 0:00:38.5]} 31... Ne5 {[%clk 0:01:17.7]} 32. Rxd7
{[%clk 0:00:37.6]} 32... Rxd7 {[%clk 0:01:18.6]} 33. Re3 {[%clk 0:00:36.7]}
33... Nc4 {[%clk 0:01:17.7]} 34. Re4 {[%clk 0:00:33.4]} 34... Nb6 {[%clk
0:01:12.5]} 35. b3 {[%clk 0:00:31.7]} 35... Kg6 {[%clk 0:01:11.4]} 36. h4 {[%clk
0:00:31.6]} 36... Kf5 {[%clk 0:01:10]} 37. a4 {[%clk 0:00:30.6]} 37... Rc7
{[%clk 0:01:02.7]} 38. Rd4 {[%clk 0:00:28.8]} 38... Ke5 {[%clk 0:01:02.7]} 39.
Re4+ {[%clk 0:00:28.5]} 39... Kf5 {[%clk 0:01:02]} 40. Rd4 {[%clk 0:00:28.8]}
40... Nc8 {[%clk 0:00:48.8]} 41. Kd3 {[%clk 0:00:27.7]} 41... Ne7 {[%clk
0:00:46]} 42. Nb5 {[%clk 0:00:24.3]} 42... Rc1 {[%clk 0:00:39]} 43. Kd2 {[%clk
0:00:24.5]} 43... Rc5 {[%clk 0:00:23.4]} 44. Rd7 {[%clk 0:00:23.5]} 44... Rd5+
{[%clk 0:00:19.7]} 45. Rxd5+ {[%clk 0:00:23.5]} 45... Nxd5 {[%clk 0:00:20.6]}
46. Nd6+ {[%clk 0:00:24.1]} 46... Kg4 {[%clk 0:00:20]} 47. Nxf7 {[%clk
0:00:20.1]} 47... Kxh4 {[%clk 0:00:20.2]} 48. Kd3 {[%clk 0:00:20.2]} 48... Kh5
{[%clk 0:00:14.6]} 49. Ke4 {[%clk 0:00:20.2]} 49... Nc3+ {[%clk 0:00:10.5]} 50.
Kf5 {[%clk 0:00:19.2]} 50... Ne2 {[%clk 0:00:09.6]} 51. Nd8 {[%clk 0:00:18.9]}
51... Ng3+ {[%clk 0:00:05.4]} 52. Kf4 {[%clk 0:00:18]} 52... Ne2+ {[%clk
0:00:05.5]} 53. Kf5 {[%clk 0:00:17.7]} 53... Nd4+ {[%clk 0:00:05.5]} 54. Kf6
{[%clk 0:00:17.1]} 54... b6 {[%clk 0:00:06]} 55. b4 {[%clk 0:00:16.1]} 55... Ne2
{[%clk 0:00:04.9]} 56. Nc6 {[%clk 0:00:15.4]} 56... a6 {[%clk 0:00:04.1]} 57.
Nb8 {[%clk 0:00:14.4]} 57... a5 {[%clk 0:00:03.4]} 58. bxa5 {[%clk 0:00:15.3]}
58... bxa5 {[%clk 0:00:03.9]} 59. Nc6 {[%clk 0:00:16]} 59... Nc3 {[%clk
0:00:04.2]} 60. Nxa5 {[%clk 0:00:16.3]} 60... Nxa4 {[%clk 0:00:04.9]} 61. Nc4
{[%clk 0:00:17]} 61... Nc5 {[%clk 0:00:04.9]} 62. Ne5 {[%clk 0:00:16.9]} 62...
Ne4+ {[%clk 0:00:04.9]} 63. Kf5 {[%clk 0:00:17.3]} 63... Nxg5 {[%clk 0:00:04.7]}
64. Nd7 {[%clk 0:00:15.9]} 64... h6 {[%clk 0:00:02.9]} 65. Nf6+ {[%clk
0:00:15.7]} 65... Kh4 {[%clk 0:00:03.6]} 66. Kg6 {[%clk 0:00:16]} 66... Ne6
{[%clk 0:00:02.2]} 67. Kxh6 {[%clk 0:00:15.9]} 1/2-1/2

[Event "Early-Titled-Tuesday-Blitz-May-28-2024"]
[Site "Chess.com"]
[Date "2024.05.28"]
[Round "2"]
[White "Losingexperience"]
[Black "frankshar"]
[Result "1-0"]
[WhiteElo "2763"]
[BlackElo "2511"]
[TimeControl "180+1"]
[EndTime "8:20:09 PDT"]
[Termination "Losingexperience won by resignation"]

1. e4 {[%clk 0:03:00.9]} 1... c5 {[%clk 0:02:59.5]} 2. Nf3 {[%clk 0:03:00.2]}
2... d6 {[%clk 0:02:58.7]} 3. d4 {[%clk 0:02:57.7]} 3... cxd4 {[%clk 0:02:59]}
4. Qxd4 {[%clk 0:02:58.6]} 4... Nc6 {[%clk 0:02:58]} 5. Qe3 {[%clk 0:02:59]}
5... Nf6 {[%clk 0:02:55.5]} 6. h3 {[%clk 0:02:59]} 6... g6 {[%clk 0:02:55.7]} 7.
Be2 {[%clk 0:02:59.2]} 7... Bg7 {[%clk 0:02:56.1]} 8. O-O {[%clk 0:02:59.1]}
8... O-O {[%clk 0:02:56.3]} 9. c4 {[%clk 0:02:59.6]} 9... Qb6 {[%clk 0:02:56.2]}
10. Nc3 {[%clk 0:02:57.2]} 10... Be6 {[%clk 0:02:54.1]} 11. Rd1 {[%clk
0:02:54.4]} 11... Nd7 {[%clk 0:02:46.3]} 12. Rb1 {[%clk 0:02:37.2]} 12... Qxe3
{[%clk 0:02:38.4]} 13. Bxe3 {[%clk 0:02:38.1]} 13... Bxc3 {[%clk 0:02:37.2]} 14.
bxc3 {[%clk 0:02:37.7]} 14... b6 {[%clk 0:02:31.5]} 15. Nd4 {[%clk 0:02:36.9]}
15... Na5 {[%clk 0:02:28.9]} 16. Nxe6 {[%clk 0:02:33.3]} 16... fxe6 {[%clk
0:02:27.6]} 17. f4 {[%clk 0:02:18.1]} 17... Rac8 {[%clk 0:02:24.7]} 18. e5
{[%clk 0:02:09.6]} 18... Nxc4 {[%clk 0:02:18.5]} 19. Bxc4 {[%clk 0:02:09.4]}
19... Rxc4 {[%clk 0:02:18.9]} 20. exd6 {[%clk 0:02:10.3]} 20... exd6 {[%clk
0:02:18.5]} 21. Rxd6 {[%clk 0:02:11.2]} 21... Nc5 {[%clk 0:02:17.5]} 22. Bxc5
{[%clk 0:02:09]} 22... Rxc5 {[%clk 0:02:17]} 23. Rxe6 {[%clk 0:02:01.4]} 23...
Rxf4 {[%clk 0:02:16.7]} 24. Rb3 {[%clk 0:01:48]} 24... Kf7 {[%clk 0:02:12.2]}
25. Re2 {[%clk 0:01:44.9]} 25... Rfc4 {[%clk 0:02:10.4]} 26. Re3 {[%clk
0:01:38]} 26... Rf4 {[%clk 0:02:04.2]} 27. Ra3 {[%clk 0:01:34.1]} 27... a5
{[%clk 0:01:58.9]} 28. Rb3 {[%clk 0:01:34.3]} 28... b5 {[%clk 0:01:58.8]} 29.
Rb2 {[%clk 0:01:28]} 29... Rfc4 {[%clk 0:01:51.5]} 30. Rf2+ {[%clk 0:01:27.9]}
30... Kg7 {[%clk 0:01:35.1]} 31. Re7+ {[%clk 0:01:27.1]} 31... Kh6 {[%clk
0:01:35.1]} 32. Rff7 {[%clk 0:01:26.9]} 32... Rxc3 {[%clk 0:01:30.8]} 33. Rxh7+
{[%clk 0:01:26.8]} 33... Kg5 {[%clk 0:01:31]} 34. Rhg7 {[%clk 0:01:17.3]} 34...
Rc2 {[%clk 0:01:18.8]} 35. Re6 {[%clk 0:01:14.9]} 35... Rxa2 {[%clk 0:01:15.5]}
36. Rgxg6+ {[%clk 0:01:02.9]} 36... Kf4 {[%clk 0:01:03.2]} 37. Rg4+ {[%clk
0:00:44.1]} 37... Kf5 {[%clk 0:01:02.4]} 38. Reg6 {[%clk 0:00:44.2]} 38... Rc1+
{[%clk 0:00:56]} 39. Kh2 {[%clk 0:00:44.2]} 39... b4 {[%clk 0:00:55.5]} 40.
R6g5+ {[%clk 0:00:41.4]} 40... Ke6 {[%clk 0:00:55]} 41. Rb5 {[%clk 0:00:41.6]}
41... Rb1 {[%clk 0:00:52.1]} 42. Rg6+ {[%clk 0:00:41.3]} 42... Kf7 {[%clk
0:00:48.6]} 43. Ra6 {[%clk 0:00:41]} 43... Re1 {[%clk 0:00:45.3]} 44. Rbxa5
{[%clk 0:00:34.9]} 44... Rxa5 {[%clk 0:00:36.5]} 45. Rxa5 {[%clk 0:00:35.8]}
45... Rb1 {[%clk 0:00:36.3]} 46. Rb5 {[%clk 0:00:36]} 46... b3 {[%clk
0:00:35.6]} 47. h4 {[%clk 0:00:36.5]} 47... Kg6 {[%clk 0:00:34.6]} 48. h5+
{[%clk 0:00:21.4]} 48... Kh6 {[%clk 0:00:33.7]} 49. g4 {[%clk 0:00:21.3]} 49...
Rb2+ {[%clk 0:00:31.3]} 50. Kg3 {[%clk 0:00:16.4]} 50... Rb1 {[%clk 0:00:30.4]}
51. Rb6+ {[%clk 0:00:16.7]} 51... Kh7 {[%clk 0:00:25]} 52. g5 {[%clk 0:00:15.1]}
52... Rg1+ {[%clk 0:00:24.5]} 53. Kf4 {[%clk 0:00:14.4]} 53... Rf1+ {[%clk
0:00:19.5]} 54. Ke3 {[%clk 0:00:11.5]} 54... Rh1 {[%clk 0:00:18]} 55. Rb7+
{[%clk 0:00:11.1]} 55... Kg8 {[%clk 0:00:17]} 56. h6 {[%clk 0:00:10.9]} 56...
Rg1 {[%clk 0:00:15.8]} 57. Kf4 {[%clk 0:00:11]} 57... Rf1+ {[%clk 0:00:15]} 58.
Kg4 {[%clk 0:00:11.5]} 58... Rb1 {[%clk 0:00:13.9]} 59. Kf5 {[%clk 0:00:09.4]}
59... b2 {[%clk 0:00:03.3]} 60. Kg6 {[%clk 0:00:09.5]} 60... Kf8 {[%clk
0:00:04.2]} 61. h7 {[%clk 0:00:09.3]} 61... Rh1 {[%clk 0:00:01.1]} 62. Rxb2
{[%clk 0:00:08.9]} 62... Ke7 {[%clk 0:00:01.8]} 63. Rb8 {[%clk 0:00:08.6]} 1-0